[Event "Kvibergspelen 2022"]
[Site "Kviberg Park Hotel & Conference, Krutvagen 2, Gothenburg, Sweden"]
[Date "2022.09.30"]
[Round "4.5"]
[White "Hamark, Jesper"]
[Black "Kashwan, Hassan"]
[Result "1-0"]
[TimeControl "15 minutes + 5 seconds per move from move one (Round 1 - 4) / 90 minutes + 30 seconds per move from move one (Round 5 - 8)"]
[WhiteFideId "1704338"]
[BlackFideId "137122555"]
[WhiteElo "2348"]
[BlackElo "1902"]

1. e4 {[%clk 00:15:09]} c5 {[%clk 00:14:34]} {[%emt 00:00:35]} 2. Nc3 {[%clk
00:15:11]} {[%emt 00:00:04]} Nc6 {[%clk 00:14:37]} {[%emt 00:00:02]} 3. Bb5
{[%clk 00:15:14]} {[%emt 00:00:02]} Nd4 {[%clk 00:14:32]} {[%emt 00:00:10]} 4.
Nf3 {[%clk 00:15:17]} Nf6 {[%clk 00:14:06]} {[%emt 00:00:31]} 5. e5 {[%clk
00:14:02]} {[%emt 00:01:21]} Nxb5 {[%clk 00:13:58]} {[%emt 00:00:12]} 6. Nxb5
{[%clk 00:13:42]} {[%emt 00:00:25]} Nd5 {[%clk 00:13:47]} {[%emt 00:00:15]} 7.
O-O {[%clk 00:11:42]} {[%emt 00:02:06]} a6 {[%clk 00:13:40]} {[%emt 00:00:13]}
8. Nc3 {[%clk 00:11:20]} {[%emt 00:00:27]} Nb4 {[%clk 00:12:19]} {[%emt
00:01:25]} 9. Re1 {[%clk 00:10:19]} {[%emt 00:01:06]} g6 {[%clk 00:11:36]}
{[%emt 00:00:48]} 10. Ne4 {[%clk 00:10:08]} {[%emt 00:00:16]} Bg7 {[%clk
00:11:05]} {[%emt 00:00:36]} 11. Nxc5 {[%clk 00:10:00]} {[%emt 00:00:13]} Qc7
{[%clk 00:10:59]} {[%emt 00:00:09]} 12. d4 {[%clk 00:09:31]} {[%emt 00:00:36]}
b6 {[%clk 00:10:52]} {[%emt 00:00:12]} 13. c3 {[%clk 00:08:14]} {[%emt
00:01:22]} bxc5 {[%clk 00:10:35]} {[%emt 00:00:23]} 14. cxb4 {[%clk 00:08:17]}
{[%emt 00:00:01]} cxd4 {[%clk 00:09:10]} {[%emt 00:01:30]} 15. Qxd4 {[%clk
00:08:18]} {[%emt 00:00:04]} O-O {[%clk 00:09:03]} {[%emt 00:00:12]} 16. Bf4
{[%clk 00:08:18]} {[%emt 00:00:05]} Bb7 {[%clk 00:07:43]} {[%emt 00:01:26]} 17.
Rac1 {[%clk 00:08:15]} {[%emt 00:00:07]} Qd8 {[%clk 00:07:38]} {[%emt
00:00:11]} 18. Qe3 {[%clk 00:07:47]} {[%emt 00:00:33]} Rc8 {[%clk 00:07:27]}
{[%emt 00:00:15]} 19. Rxc8 {[%clk 00:07:25]} {[%emt 00:00:28]} Qxc8 {[%clk
00:07:29]} {[%emt 00:00:02]} 20. Rc1 {[%clk 00:06:38]} {[%emt 00:00:52]} Qa8
{[%clk 00:07:25]} {[%emt 00:00:09]} 21. h3 {[%clk 00:06:18]} {[%emt 00:00:25]}
Bd5 {[%clk 00:06:59]} {[%emt 00:00:30]} 22. a3 {[%clk 00:06:18]} {[%emt
00:00:06]} Rd8 {[%clk 00:06:23]} {[%emt 00:00:40]} 23. Ne1 {[%clk 00:06:06]}
{[%emt 00:00:18]} d6 {[%clk 00:05:42]} {[%emt 00:00:46]} 24. Rd1 {[%clk
00:05:38]} {[%emt 00:00:33]} dxe5 {[%clk 00:03:20]} {[%emt 00:02:27]} 25. Bxe5
{[%clk 00:05:41]} {[%emt 00:00:01]} f6 {[%clk 00:03:21]} {[%emt 00:00:04]} 26.
Bc3 {[%clk 00:05:28]} {[%emt 00:00:17]} e6 {[%clk 00:03:09]} {[%emt 00:00:19]}
27. f3 {[%clk 00:05:27]} {[%emt 00:00:05]} Rc8 {[%clk 00:02:41]} {[%emt
00:00:32]} 28. Nd3 {[%clk 00:05:23]} {[%emt 00:00:10]} Bb3 {[%clk 00:02:28]}
{[%emt 00:00:19]} 29. Rd2 {[%clk 00:05:26]} {[%emt 00:00:02]} h5 {[%clk
00:01:51]} {[%emt 00:00:42]} 30. Nc5 {[%clk 00:05:28]} {[%emt 00:00:02]} Bd5
{[%clk 00:01:44]} {[%emt 00:00:13]} 31. Ne4 {[%clk 00:05:18]} {[%emt 00:00:15]}
Rf8 {[%clk 00:01:23]} {[%emt 00:00:27]} 32. Qd4 {[%clk 00:04:56]} {[%emt
00:00:25]} Rf7 {[%clk 00:00:54]} {[%emt 00:00:34]} 33. Qd3 {[%clk 00:04:43]}
{[%emt 00:00:18]} Kh7 {[%clk 00:00:46]} {[%emt 00:00:13]} 34. Re2 {[%clk
00:04:26]} {[%emt 00:00:23]} Qc8 {[%clk 00:00:50]} 35. Nc5 {[%clk 00:04:24]}
{[%emt 00:00:07]} a5 {[%clk 00:00:48]} {[%emt 00:00:08]} 36. Re1 {[%clk
00:03:41]} {[%emt 00:00:47]} axb4 {[%emt 00:00:03]} 37. axb4 {[%clk 00:03:19]}
{[%emt 00:00:26]} Bf8 {[%clk 00:00:51]} {[%emt 00:00:05]} 38. Ne4 {[%clk
00:03:20]} {[%emt 00:00:04]} Be7 {[%clk 00:00:45]} {[%emt 00:00:10]} 39. Ra1
{[%clk 00:03:21]} {[%emt 00:00:04]} Bc4 {[%clk 00:00:42]} {[%emt 00:00:09]} 40.
Qe3 {[%clk 00:03:23]} {[%emt 00:00:08]} e5 {[%clk 00:00:31]} {[%emt 00:00:21]}
41. Ra7 {[%clk 00:03:11]} {[%emt 00:00:16]} Kg7 {[%clk 00:00:30]} {[%emt
00:00:07]} 42. Kh1 {[%clk 00:02:28]} {[%emt 00:00:48]} Qb8 {[%clk 00:00:22]}
{[%emt 00:00:12]} 43. Nc5 {[%clk 00:01:40]} {[%emt 00:00:54]} 1-0

[Event "Kvibergspelen 2022"]
[Site "Kviberg Park Hotel & Conference, Krutvagen 2, Gothenburg, Sweden"]
[Date "2022.09.30"]
[Round "4.6"]
[White "Strom-Engdahl, Alexander"]
[Black "Persson, Sebastian"]
[Result "1-0"]
[TimeControl "15 minutes + 5 seconds per move from move one (Round 1 - 4) / 90 minutes + 30 seconds per move from move one (Round 5 - 8)"]
[WhiteFideId "1741586"]
[BlackFideId "1764187"]
[WhiteElo "2114"]
[BlackElo "1659"]

1. d4 {[%clk 00:15:07]} {[%emt 00:00:03]} d5 {[%clk 00:15:06]} {[%emt
00:00:05]} 2. Bf4 {[%clk 00:15:09]} {[%emt 00:00:04]} Nf6 {[%clk 00:15:04]}
{[%emt 00:00:07]} 3. e3 {[%clk 00:15:09]} {[%emt 00:00:04]} c5 {[%clk
00:14:54]} {[%emt 00:00:15]} 4. c3 {[%clk 00:15:08]} {[%emt 00:00:06]} Nc6
{[%clk 00:14:44]} {[%emt 00:00:15]} 5. Nd2 {[%clk 00:15:09]} {[%emt 00:00:04]}
Bf5 {[%clk 00:13:48]} {[%emt 00:01:01]} 6. Ngf3 {[%clk 00:15:04]} {[%emt
00:00:11]} e6 {[%clk 00:13:45]} {[%emt 00:00:08]} 7. Qa4 {[%clk 00:15:04]}
{[%emt 00:00:04]} Bd6 {[%clk 00:11:11]} {[%emt 00:02:39]} 8. Ba6 {[%clk
00:14:43]} {[%emt 00:00:26]} Bxf4 {[%clk 00:07:52]} {[%emt 00:03:24]} 9. Bxb7
{[%clk 00:14:35]} {[%emt 00:00:13]} O-O {[%clk 00:07:40]} {[%emt 00:00:17]} 10.
exf4 {[%clk 00:14:17]} {[%emt 00:00:23]} Ne7 {[%clk 00:06:23]} {[%emt
00:01:22]} 11. Bxa8 {[%clk 00:14:12]} {[%emt 00:00:10]} Qxa8 {[%clk 00:06:24]}
{[%emt 00:00:04]} 12. O-O {[%clk 00:13:59]} {[%emt 00:00:17]} cxd4 {[%clk
00:06:13]} {[%emt 00:00:17]} 13. Nxd4 {[%clk 00:13:52]} {[%emt 00:00:12]} Bd3
{[%clk 00:06:07]} {[%emt 00:00:12]} 14. Rfe1 {[%clk 00:13:47]} {[%emt
00:00:10]} Qb7 {[%clk 00:05:38]} {[%emt 00:00:34]} 15. Qa3 {[%clk 00:13:09]}
{[%emt 00:00:42]} Ng6 {[%clk 00:05:20]} {[%emt 00:00:23]} 16. g3 {[%clk
00:12:32]} {[%emt 00:00:42]} h5 {[%clk 00:04:54]} {[%emt 00:00:32]} 17. Re3
{[%clk 00:12:18]} {[%emt 00:00:18]} Bc4 {[%clk 00:04:14]} {[%emt 00:00:45]} 18.
Qb4 {[%clk 00:10:58]} {[%emt 00:01:25]} Qc7 {[%clk 00:03:32]} {[%emt 00:00:46]}
19. b3 {[%clk 00:08:50]} {[%emt 00:02:13]} Ba6 {[%clk 00:03:12]} {[%emt
00:00:25]} 20. Nb5 {[%clk 00:07:51]} {[%emt 00:01:04]} Bxb5 {[%clk 00:03:07]}
{[%emt 00:00:11]} 21. Qxb5 {[%clk 00:07:52]} {[%emt 00:00:04]} h4 {[%clk
00:02:51]} {[%emt 00:00:20]} 22. Rc1 {[%clk 00:07:30]} {[%emt 00:00:26]} Rb8
{[%clk 00:02:16]} {[%emt 00:00:41]} 23. Qd3 {[%clk 00:07:04]} {[%emt 00:00:32]}
Ng4 {[%clk 00:01:23]} {[%emt 00:00:57]} 24. Re2 {[%clk 00:06:44]} {[%emt
00:00:25]} e5 {[%clk 00:00:23]} {[%emt 00:01:05]} 25. Qf3 {[%clk 00:06:02]}
{[%emt 00:00:47]} f5 {[%clk 00:00:13]} {[%emt 00:00:15]} 26. fxe5 {[%clk
00:05:52]} {[%emt 00:00:15]} Rf8 {[%clk 00:00:17]} {[%emt 00:00:02]} 27. Qxd5+
{[%clk 00:05:42]} {[%emt 00:00:15]} Kh8 {[%clk 00:00:19]} {[%emt 00:00:02]} 28.
Qd6 {[%clk 00:05:38]} {[%emt 00:00:09]} Qf7 {[%clk 00:00:09]} {[%emt 00:00:16]}
29. e6 {[%clk 00:05:41]} {[%emt 00:00:02]} Qf6 {[%clk 00:00:13]} 30. Qd4 {[%clk
00:05:37]} {[%emt 00:00:09]} N6e5 {[%clk 00:00:17]} {[%emt 00:00:01]} 31. Rxe5
{[%clk 00:04:51]} {[%emt 00:00:52]} Nxe5 {[%clk 00:00:18]} {[%emt 00:00:03]} 32.
Re1 {[%clk 00:04:54]} Rd8 {[%clk 00:00:08]} {[%emt 00:00:16]} 33. Qxe5 {[%clk
00:04:58]} {[%emt 00:00:01]} 1-0

[Event "Kvibergspelen 2022"]
[Site "Kviberg Park Hotel & Conference, Krutvagen 2, Gothenburg, Sweden"]
[Date "2022.09.30"]
[Round "4.7"]
[White "Ulff, Johan"]
[Black "Kucuksari, Kaan"]
[Result "0-1"]
[TimeControl "15 minutes + 5 seconds per move from move one (Round 1 - 4) / 90 minutes + 30 seconds per move from move one (Round 5 - 8)"]
[BlackTitle "FM"]
[WhiteFideId "1733893"]
[BlackFideId "6380166"]
[WhiteElo "2132"]
[BlackElo "2482"]

1. Nf3 {[%clk 00:15:07]} {[%emt 00:00:02]} Nf6 {[%clk 00:15:06]} {[%emt
00:00:05]} 2. c4 {[%clk 00:15:11]} {[%emt 00:00:01]} b6 {[%clk 00:15:07]}
{[%emt 00:00:04]} 3. g3 {[%clk 00:15:14]} {[%emt 00:00:01]} Bb7 {[%clk
00:15:11]} {[%emt 00:00:01]} 4. Bg2 {[%clk 00:15:18]} {[%emt 00:00:02]} e6
{[%clk 00:15:15]} 5. b3 {[%clk 00:14:58]} {[%emt 00:00:25]} Be7 {[%clk
00:15:18]} {[%emt 00:00:02]} 6. Bb2 {[%clk 00:15:02]} O-O {[%clk 00:15:21]}
{[%emt 00:00:02]} 7. O-O {[%clk 00:15:04]} {[%emt 00:00:03]} d5 {[%clk
00:15:25]} {[%emt 00:00:01]} 8. Na3 {[%clk 00:13:10]} {[%emt 00:01:59]} d4
{[%clk 00:15:21]} {[%emt 00:00:09]} 9. d3 {[%clk 00:13:06]} {[%emt 00:00:08]}
c5 {[%clk 00:15:23]} {[%emt 00:00:04]} 10. e4 {[%clk 00:12:54]} {[%emt
00:00:17]} Nc6 {[%clk 00:15:14]} {[%emt 00:00:14]} 11. Bc1 {[%clk 00:12:10]}
{[%emt 00:00:49]} e5 {[%clk 00:15:16]} {[%emt 00:00:02]} 12. Nc2 {[%clk
00:12:03]} {[%emt 00:00:13]} Bc8 {[%clk 00:15:19]} {[%emt 00:00:02]} 13. h3
{[%clk 00:12:06]} {[%emt 00:00:02]} h6 {[%clk 00:15:15]} {[%emt 00:00:09]} 14.
Nh4 {[%clk 00:11:44]} {[%emt 00:00:27]} Re8 {[%clk 00:15:18]} 15. Nf5 {[%clk
00:11:41]} {[%emt 00:00:08]} Bf8 {[%clk 00:15:22]} {[%emt 00:00:02]} 16. g4
{[%clk 00:11:40]} {[%emt 00:00:07]} Kh7 {[%clk 00:15:18]} {[%emt 00:00:09]} 17.
Qd2 {[%clk 00:11:35]} {[%emt 00:00:09]} Ng8 {[%clk 00:15:20]} {[%emt 00:00:03]}
18. Ne1 {[%clk 00:10:35]} {[%emt 00:01:04]} g6 {[%clk 00:15:07]} {[%emt
00:00:20]} 19. Ng3 {[%clk 00:10:38]} {[%emt 00:00:02]} Be7 {[%clk 00:15:10]}
{[%emt 00:00:02]} 20. Nf3 {[%clk 00:10:01]} {[%emt 00:00:42]} a6 {[%clk
00:14:49]} {[%emt 00:00:26]} 21. Kh2 {[%clk 00:08:40]} {[%emt 00:01:26]} Bf6
{[%clk 00:14:46]} {[%emt 00:00:08]} 22. Rh1 {[%clk 00:08:42]} {[%emt 00:00:03]}
b5 {[%clk 00:14:33]} {[%emt 00:00:18]} 23. Kg1 {[%clk 00:08:04]} {[%emt
00:00:43]} Qe7 {[%clk 00:14:34]} {[%emt 00:00:04]} 24. Kf1 {[%clk 00:04:11]}
{[%emt 00:03:58]} bxc4 {[%clk 00:14:36]} {[%emt 00:00:04]} 25. bxc4 {[%clk
00:04:14]} {[%emt 00:00:02]} Rb8 {[%clk 00:14:32]} {[%emt 00:00:09]} 26. a3
{[%clk 00:04:05]} {[%emt 00:00:14]} Qb7 {[%clk 00:14:04]} {[%emt 00:00:32]} 27.
g5 {[%clk 00:03:18]} {[%emt 00:00:53]} Bg7 {[%clk 00:13:57]} {[%emt 00:00:12]}
28. h4 {[%clk 00:03:14]} {[%emt 00:00:09]} h5 {[%clk 00:13:59]} {[%emt
00:00:02]} 29. Bh3 {[%clk 00:02:51]} {[%emt 00:00:28]} Bxh3+ {[%clk 00:14:02]}
{[%emt 00:00:02]} 30. Rxh3 {[%clk 00:02:55]} Qd7 {[%clk 00:14:02]} {[%emt
00:00:05]} 31. Kg2 {[%clk 00:02:59]} {[%emt 00:00:02]} Nge7 {[%clk 00:13:41]}
{[%emt 00:00:26]} 32. Rh1 {[%clk 00:03:01]} {[%emt 00:00:03]} Nc8 {[%clk
00:13:42]} {[%emt 00:00:04]} 33. Qe1 {[%clk 00:02:17]} {[%emt 00:00:49]} Nd6
{[%clk 00:13:41]} {[%emt 00:00:05]} 34. Ng1 {[%clk 00:02:03]} {[%emt 00:00:19]}
Kg8 {[%clk 00:13:33]} {[%emt 00:00:13]} 35. N1e2 {[%clk 00:02:07]} {[%emt
00:00:02]} Rb3 {[%clk 00:13:33]} {[%emt 00:00:05]} 36. Qd1 {[%clk 00:02:05]}
{[%emt 00:00:08]} Reb8 {[%clk 00:13:36]} 37. f3 {[%clk 00:01:48]} {[%emt
00:00:22]} a5 {[%clk 00:13:33]} {[%emt 00:00:08]} 38. Nf1 {[%clk 00:01:46]}
{[%emt 00:00:06]} a4 {[%clk 00:13:31]} {[%emt 00:00:07]} 39. Qc2 {[%clk
00:01:49]} {[%emt 00:00:03]} Na5 {[%clk 00:13:07]} {[%emt 00:00:29]} 40. Nd2
{[%clk 00:00:27]} {[%emt 00:01:27]} R3b7 {[%clk 00:13:10]} {[%emt 00:00:01]} 41.
Qd1 {[%clk 00:00:23]} {[%emt 00:00:10]} Ne8 {[%clk 00:13:07]} {[%emt 00:00:08]}
42. Rh3 {[%clk 00:00:22]} {[%emt 00:00:06]} Nc7 {[%clk 00:13:10]} {[%emt
00:00:02]} 43. Rg3 {[%clk 00:00:25]} {[%emt 00:00:02]} Ne6 {[%clk 00:13:14]}
{[%emt 00:00:02]} 44. Ra2 {[%clk 00:00:23]} {[%emt 00:00:07]} Bf8 {[%clk
00:13:12]} {[%emt 00:00:07]} 45. Qf1 {[%clk 00:00:23]} {[%emt 00:00:05]} Bd6
{[%clk 00:13:15]} {[%emt 00:00:02]} 46. Qd1 {[%clk 00:00:21]} {[%emt 00:00:06]}
Rb6 {[%clk 00:13:07]} {[%emt 00:00:14]} 47. Rh3 {[%clk 00:00:18]} {[%emt
00:00:08]} Be7 {[%clk 00:11:39]} {[%emt 00:01:33]} 48. Rg3 {[%clk 00:00:13]}
{[%emt 00:00:10]} Kg7 {[%clk 00:11:37]} {[%emt 00:00:07]} 49. Kf2 {[%clk
00:00:14]} {[%emt 00:00:05]} f6 {[%clk 00:11:34]} {[%emt 00:00:07]} 50. gxf6+
{[%clk 00:00:16]} {[%emt 00:00:03]} Bxf6 {[%clk 00:11:37]} {[%emt 00:00:02]} 51.
Qg1 {[%clk 00:00:18]} {[%emt 00:00:02]} Bxh4 {[%clk 00:11:39]} {[%emt
00:00:04]} 52. Kf1 {[%clk 00:00:19]} {[%emt 00:00:05]} Bxg3 {[%clk 00:11:41]}
{[%emt 00:00:04]} 53. Qxg3 {[%clk 00:00:22]} Nf4 {[%clk 00:11:40]} {[%emt
00:00:05]} 54. Nxf4 {[%clk 00:00:24]} {[%emt 00:00:04]} exf4 {[%clk 00:11:44]}
{[%emt 00:00:01]} 55. Qxf4 {[%clk 00:00:28]} Rf8 {[%clk 00:11:44]} {[%emt
00:00:05]} 56. Qe5+ {[%clk 00:00:31]} {[%emt 00:00:03]} Kh7 {[%clk 00:11:48]}
57. Qxc5 {[%clk 00:00:32]} {[%emt 00:00:04]} Qh3+ {[%clk 00:11:32]} {[%emt
00:00:21]} 58. Kf2 {[%clk 00:00:36]} {[%emt 00:00:01]} Qh2+ {[%clk 00:11:21]}
{[%emt 00:00:16]} 59. Kf1 {[%clk 00:00:39]} {[%emt 00:00:02]} Qh1+ {[%clk
00:11:15]} {[%emt 00:00:11]} 60. Kf2 {[%clk 00:00:43]} {[%emt 00:00:01]} Rbf6
{[%clk 00:11:12]} {[%emt 00:00:08]} 61. Ke2 {[%clk 00:00:09]} {[%emt 00:00:39]}
Nb3 {[%clk 00:11:09]} {[%emt 00:00:08]} 0-1

[Event "Kvibergspelen 2022"]
[Site "Kviberg Park Hotel & Conference, Krutvagen 2, Gothenburg, Sweden"]
[Date "2022.09.30"]
[Round "4.8"]
[White "Mitusov, Semen"]
[Black "Jakenberg, Jussi"]
[Result "1-0"]
[TimeControl "15 minutes + 5 seconds per move from move one (Round 1 - 4) / 90 minutes + 30 seconds per move from move one (Round 5 - 8)"]
[WhiteTitle "FM"]
[WhiteFideId "14151049"]
[BlackFideId "1710931"]
[WhiteElo "2418"]
[BlackElo "2114"]

1. e4 {[%clk 00:15:07]} {[%emt 00:00:03]} e5 {[%clk 00:15:08]} {[%emt
00:00:02]} 2. Nf3 {[%clk 00:14:58]} {[%emt 00:00:14]} Nc6 {[%clk 00:15:11]}
{[%emt 00:00:02]} 3. Bc4 {[%clk 00:15:02]} {[%emt 00:00:02]} Bc5 {[%emt
00:00:07]} 4. c3 {[%clk 00:15:03]} {[%emt 00:00:02]} Nf6 {[%clk 00:15:14]}
{[%emt 00:00:02]} 5. d3 {[%clk 00:15:07]} {[%emt 00:00:02]} O-O {[%clk
00:15:08]} {[%emt 00:00:10]} 6. O-O {[%clk 00:15:02]} {[%emt 00:00:10]} d5
{[%clk 00:14:58]} {[%emt 00:00:15]} 7. exd5 {[%clk 00:14:55]} {[%emt 00:00:12]}
Nxd5 {[%clk 00:15:01]} {[%emt 00:00:02]} 8. Re1 {[%clk 00:14:21]} {[%emt
00:00:39]} Bg4 {[%clk 00:14:44]} {[%emt 00:00:22]} 9. h3 {[%clk 00:13:42]}
{[%emt 00:00:44]} Bh5 {[%clk 00:14:31]} {[%emt 00:00:18]} 10. Nbd2 {[%clk
00:13:42]} {[%emt 00:00:05]} Nb6 {[%clk 00:13:52]} {[%emt 00:00:44]} 11. Bb5
{[%clk 00:13:33]} {[%emt 00:00:14]} f6 {[%clk 00:12:31]} {[%emt 00:01:26]} 12.
Bxc6 {[%clk 00:13:24]} {[%emt 00:00:14]} bxc6 {[%clk 00:12:35]} {[%emt
00:00:01]} 13. Ne4 {[%clk 00:13:26]} {[%emt 00:00:03]} Bd6 {[%clk 00:11:06]}
{[%emt 00:01:33]} 14. Ng3 {[%clk 00:13:04]} {[%emt 00:00:27]} Bf7 {[%clk
00:10:37]} {[%emt 00:00:34]} 15. Nf5 {[%clk 00:12:22]} {[%emt 00:00:47]} Qd7
{[%clk 00:09:44]} {[%emt 00:00:58]} 16. N3h4 {[%clk 00:11:26]} {[%emt
00:01:02]} Be6 {[%clk 00:09:27]} {[%emt 00:00:21]} 17. Qf3 {[%clk 00:10:54]}
{[%emt 00:00:37]} Rae8 {[%clk 00:09:06]} {[%emt 00:00:26]} 18. Be3 {[%clk
00:10:35]} {[%emt 00:00:25]} a6 {[%clk 00:08:58]} {[%emt 00:00:14]} 19. Nxd6
{[%clk 00:09:29]} {[%emt 00:01:10]} Qxd6 {[%clk 00:09:01]} {[%emt 00:00:02]} 20.
d4 {[%clk 00:09:27]} {[%emt 00:00:07]} Nd5 {[%clk 00:08:18]} {[%emt 00:00:48]}
21. Rad1 {[%clk 00:08:46]} {[%emt 00:00:46]} Nxe3 {[%clk 00:08:06]} {[%emt
00:00:16]} 22. Rxe3 {[%clk 00:07:44]} {[%emt 00:01:07]} exd4 {[%clk 00:05:34]}
{[%emt 00:02:38]} 23. Rxd4 {[%clk 00:07:39]} {[%emt 00:00:09]} Bd5 {[%clk
00:05:27]} {[%emt 00:00:13]} 24. Qd1 {[%clk 00:06:22]} {[%emt 00:01:21]} Rxe3
{[%clk 00:05:20]} {[%emt 00:00:12]} 25. Nf5 {[%clk 00:06:25]} {[%emt 00:00:02]}
Qe6 {[%clk 00:04:02]} {[%emt 00:01:22]} 26. Nxe3 {[%clk 00:06:26]} {[%emt
00:00:05]} Bxa2 {[%clk 00:03:29]} {[%emt 00:00:38]} 27. Rd7 {[%clk 00:05:59]}
{[%emt 00:00:31]} Bd5 {[%clk 00:02:18]} {[%emt 00:01:17]} 28. Rxc7 {[%clk
00:05:36]} {[%emt 00:00:28]} Re8 {[%clk 00:01:58]} {[%emt 00:00:24]} 29. Qd4
{[%clk 00:05:11]} {[%emt 00:00:30]} Qd6 {[%clk 00:01:02]} {[%emt 00:01:02]} 30.
Qa7 {[%clk 00:05:04]} {[%emt 00:00:12]} 1-0

[Event "Kvibergspelen 2022"]
[Site "Kviberg Park Hotel & Conference, Krutvagen 2, Gothenburg, Sweden"]
[Date "2022.09.30"]
[Round "4.9"]
[White "Svensson, Hakan"]
[Black "Golubka, Petro"]
[Result "0-1"]
[TimeControl "15 minutes + 5 seconds per move from move one (Round 1 - 4) / 90 minutes + 30 seconds per move from move one (Round 5 - 8)"]
[BlackTitle "GM"]
[WhiteFideId "1714201"]
[BlackFideId "14114224"]
[WhiteElo "2067"]
[BlackElo "2360"]

1. d4 {[%clk 00:15:07]} {[%emt 00:00:01]} Nf6 {[%clk 00:14:48]} {[%emt
00:00:24]} 2. Bg5 {[%clk 00:15:09]} {[%emt 00:00:03]} Ne4 {[%clk 00:14:49]}
{[%emt 00:00:05]} 3. Bh4 {[%clk 00:15:11]} {[%emt 00:00:02]} d5 {[%clk
00:14:48]} {[%emt 00:00:07]} 4. f3 {[%clk 00:15:14]} {[%emt 00:00:01]} Nd6
{[%clk 00:14:51]} {[%emt 00:00:02]} 5. Nc3 {[%clk 00:15:18]} {[%emt 00:00:01]}
Nf5 {[%clk 00:14:29]} {[%emt 00:00:27]} 6. Bf2 {[%clk 00:15:20]} {[%emt
00:00:03]} e6 {[%clk 00:14:28]} {[%emt 00:00:06]} 7. e4 {[%clk 00:14:57]}
{[%emt 00:00:28]} Ne7 {[%clk 00:14:32]} {[%emt 00:00:02]} 8. Qd2 {[%clk
00:14:20]} {[%emt 00:00:42]} a6 {[%clk 00:14:32]} {[%emt 00:00:05]} 9. Bd3
{[%clk 00:14:04]} {[%emt 00:00:20]} Nbc6 {[%clk 00:14:17]} {[%emt 00:00:20]} 10.
O-O-O {[%clk 00:13:16]} {[%emt 00:00:53]} Nb4 {[%clk 00:14:12]} {[%emt
00:00:10]} 11. Bf1 {[%clk 00:13:15]} {[%emt 00:00:06]} g6 {[%clk 00:14:13]}
{[%emt 00:00:04]} 12. h4 {[%clk 00:13:09]} {[%emt 00:00:11]} h5 {[%clk
00:14:16]} {[%emt 00:00:02]} 13. Nh3 {[%clk 00:13:00]} {[%emt 00:00:14]} Qd6
{[%clk 00:13:53]} {[%emt 00:00:28]} 14. Qe1 {[%clk 00:12:05]} {[%emt 00:00:59]}
Bh6+ {[%clk 00:13:51]} {[%emt 00:00:08]} 15. Kb1 {[%clk 00:12:03]} {[%emt
00:00:07]} b6 {[%clk 00:11:31]} {[%emt 00:02:26]} 16. Bg3 {[%clk 00:11:10]}
{[%emt 00:00:57]} Qd7 {[%clk 00:11:30]} {[%emt 00:00:06]} 17. Be5 {[%clk
00:10:11]} {[%emt 00:01:05]} Rf8 {[%clk 00:10:23]} {[%emt 00:01:12]} 18. exd5
{[%clk 00:10:03]} {[%emt 00:00:13]} Nbxd5 {[%clk 00:09:54]} {[%emt 00:00:34]}
19. Nxd5 {[%clk 00:10:01]} {[%emt 00:00:06]} Nxd5 {[%clk 00:09:17]} {[%emt
00:00:42]} 20. c4 {[%clk 00:10:02]} {[%emt 00:00:04]} Ne3 {[%clk 00:09:11]}
{[%emt 00:00:12]} 21. Rd3 {[%clk 00:09:26]} {[%emt 00:00:41]} Nxc4 {[%clk
00:08:28]} {[%emt 00:00:48]} 22. Bf6 {[%clk 00:09:11]} {[%emt 00:00:19]} Bb7
{[%clk 00:08:09]} {[%emt 00:00:24]} 23. Ng5 {[%clk 00:08:45]} {[%emt 00:00:31]}
b5 {[%clk 00:07:29]} {[%emt 00:00:46]} 24. f4 {[%clk 00:06:47]} {[%emt
00:02:02]} Nb6 {[%clk 00:06:52]} {[%emt 00:00:43]} 25. Nh7 {[%clk 00:04:33]}
{[%emt 00:02:18]} Nd5 {[%clk 00:06:26]} {[%emt 00:00:31]} 26. Nxf8 {[%clk
00:03:52]} {[%emt 00:00:46]} Kxf8 {[%clk 00:06:29]} {[%emt 00:00:02]} 27. Bg5
{[%clk 00:03:53]} {[%emt 00:00:04]} Bg7 {[%clk 00:06:33]} 28. Rd1 {[%clk
00:03:43]} {[%emt 00:00:15]} f6 {[%clk 00:06:28]} {[%emt 00:00:10]} 0-1